bitfinex-derivatives/quotes_SOLF0:USTF0_20241203
["timestamp","ask_amount","ask_price","bid_price","bid_amount"]
[1733256909380,2.24,229.74,229.6,1.3527]
[1733256909586,2.24,229.74,229.67,7.05485562]
[1733256909790,2.24,229.74,229.68,7.05485562]
[1733256910288,2.24,229.74,229.66,7.05485562]
[1733256910890,9.29485562,229.73,229.66,7.05485562]
[1733256911389,4.4157,229.73,229.68,2.1761]
[1733256912384,4.4157,229.73,229.69,2.176]
[1733256912585,2.24,229.73,229.69,2.176]
[1733256913581,2.24,229.73,229.7,2.1759]
[1733256913889,4.4157,229.73,229.66,7.05485562]
[1733256914388,4.4157,229.73,229.67,7.05485562]
[1733256914990,4.4157,229.73,229.69,2.176]
[1733256915590,2.24,229.72,229.69,2.176]
[1733256917292,2.24,229.72,229.7,2.1759]
[1733256917997,2.24,229.71,229.7,2.1759]
[1733256924702,2.24,229.71,229.58,4.3541]
[1733256924903,7.05485562,229.69,229.62,7.05485562]
[1733256925304,7.05485562,229.69,229.66,2.1762]
[1733256925601,7.05485562,229.69,229.62,7.05485562]
[1733256926104,7.05485562,229.67,229.62,2.1766]
[1733256926292,7.05485562,229.67,229.54,1.483]
[1733256926293,2.24,229.66,229.59,7.05485562]
[1733256926900,2.24,229.66,229.63,2.1765]
[1733256928904,7.05485562,229.65,229.63,2.1765]
[1733256929800,7.05485562,229.65,229.64,2.1765]
[1733256930003,2.24,229.66,229.61,7.05485562]
[1733256930203,2.24,229.66,229.63,7.05485562]
[1733256931007,2.24,229.66,229.65,2.1764]
[1733256931903,2.24,229.69,229.65,7.05485562]
[1733256932405,2.24,229.69,229.68,2.1761]
[1733256936006,2.24,229.69,229.63,7.05485562]
[1733256936206,2.24,229.69,229.67,2.1762]
[1733256937011,7.05485562,229.68,229.57,4.3543]
[1733256937308,7.05485562,229.68,229.66,2.1762]
[1733256937704,7.05485562,229.68,229.6,7.05485562]
[1733256937705,7.05485562,229.68,229.67,2.1762]
[1733256938305,7.05485562,229.68,229.6,7.05485562]
[1733256938511,7.05485562,229.68,229.66,2.1763]
[1733256938703,7.05485562,229.68,229.6,7.05485562]
[1733256938907,7.05485562,229.68,229.57,4.3543]
[1733256939110,7.05485562,229.68,229.6,7.05485562]
[1733256940210,7.05485562,229.68,229.66,2.1762]
[1733256940409,7.05485562,229.68,229.57,4.3543]
[1733256940810,7.05485562,229.68,229.6,7.05485562]
[1733256941413,7.05485562,229.68,229.66,2.1763]
[1733256943608,7.05485562,229.68,229.6,7.05485562]
[1733256943819,7.05485562,229.68,229.67,2.1762]
[1733256947005,7.05485562,229.68,229.55,1.3062]
[1733256947210,7.05485562,229.65,229.57,7.05485562]
[1733256947406,7.05485562,229.63,229.57,7.05485562]
[1733256948522,2.24,229.64,229.63,2.1766]
[1733256948723,2.24,229.73,229.63,7.05485562]
[1733256948911,2.24,229.73,229.55,3.5462]
[1733256948912,2.24,229.73,229.66,7.05485562]
[1733256949218,2.24,229.73,229.7,2.1759]
[1733256949419,2.24,229.73,229.66,7.05485562]
[1733256949618,7.05485562,229.72,229.66,7.05485562]
[1733256950616,7.05485562,229.72,229.65,0.65]
[1733256950617,7.05485562,229.7,229.65,0.65]
[1733256951115,7.05485562,229.7,229.67,2.1762]
[1733256954421,7.05485562,229.7,229.62,7.05485562]
[1733256955022,7.05485562,229.7,229.64,7.05485562]
[1733256955221,7.05485562,229.7,229.67,2.1761]
[1733256955726,2.22,229.69,229.67,2.1761]
[1733256955919,2.22,229.69,229.68,2.1761]
[1733256957422,7.05485562,229.73,229.7,2.1759]
[1733256957622,2.22,229.72,229.7,2.1759]
[1733256957823,2.22,229.72,229.66,7.05485562]
[1733256958928,2.22,229.72,229.71,2.1758]
[1733256959527,2.5979,229.77,229.74,2.1755]
[1733256959827,2.5979,229.77,229.68,7.05485562]
[1733256959828,7.05485562,229.77,229.68,7.05485562]
[1733256960021,2.22,229.76,229.7,7.05485562]
[1733256961125,2.22,229.76,229.75,2.1755]
[1733256961723,2.22,229.76,229.63,1.3544]
[1733256961724,2.22,229.78,229.72,7.05485562]
[1733256962420,2.22,229.78,229.77,2.1753]
[1733256962623,2.22,229.78,229.72,7.05485562]
[1733256962624,2.22,229.79,229.72,7.05485562]
[1733256963425,2.22,229.79,229.78,2.1751]
[1733256965227,2.22,229.79,229.63,1.3544]
[1733256965426,7.05485562,229.76,229.68,7.05485562]
[1733256965826,7.05485562,229.76,229.75,2.1755]
[1733256966030,7.05485562,229.78,229.7,7.05485562]
[1733256966427,7.05485562,229.78,229.77,2.1753]
[1733256966632,7.05485562,229.78,229.72,7.05485562]
[1733256966830,7.05485562,229.78,229.65,4.3528]
[1733256967030,7.05485562,229.78,229.69,7.05485562]
[1733256967329,7.05485562,229.76,229.69,7.05485562]
[1733256967530,2.22,229.79,229.63,1.3544]
[1733256967531,7.05485562,229.74,229.71,2.1758]
[1733256967731,9.27485562,229.74,229.71,2.1758]
[1733256967931,9.27485562,229.74,229.67,7.05485562]
[1733256968232,9.27485562,229.74,229.72,2.1757]
[1733256968434,9.27485562,229.74,229.67,7.05485562]
[1733256968634,2.22,229.73,229.71,2.1758]
[1733256969232,9.23065562,229.72,229.67,2.1761]
[1733256969435,9.23065562,229.72,229.58,4.354]
[1733256969436,7.05485562,229.72,229.64,7.05485562]
[1733256969830,7.05485562,229.66,229.61,2.1767]
[1733256970034,2.22,229.65,229.61,2.1767]
[1733256970434,2.22,229.65,229.61,2.1768]
[1733256972035,2.1765,229.64,229.56,2.1772]
[1733256972239,7.05485562,229.64,229.56,7.05485562]
[1733256972931,2.1766,229.63,229.57,2.1771]
[1733256973133,7.05485562,229.62,229.46,2.22]
[1733256973333,7.05485562,229.6,229.53,7.05485562]
[1733256973536,2.22,229.59,229.55,7.05485562]
[1733256973736,2.22,229.58,229.55,7.05485562]
[1733256974235,2.22,229.58,229.57,2.1772]
[1733256974433,2.22,229.58,229.57,9.23205562]
[1733256975038,2.22,229.62,229.57,7.05485562]
[1733256975230,2.22,229.62,229.6,7.05485562]
[1733256976038,2.22,229.62,229.61,2.1768]
[1733256978436,2.22,229.66,229.65,2.1764]
[1733256978637,2.22,229.66,229.59,0.65]
[1733256978638,2.22,229.66,229.64,7.05485562]
[1733256979041,2.22,229.66,229.65,2.1764]
[1733256979740,7.05485562,229.7,229.62,7.05485562]
[1733256979943,2.22,229.69,229.62,7.05485562]
[1733256980336,2.22,229.69,229.53,1.3346]
[1733256980537,7.05485562,229.66,229.54,1.33361479]
[1733256980743,7.05485562,229.66,229.59,7.05485562]
[1733256980942,7.05485562,229.66,229.53,1.3346]
[1733256981146,7.05485562,229.66,229.59,7.05485562]
[1733256981542,7.05485562,229.66,229.53,1.3346]
[1733256981738,7.05485562,229.64,229.57,7.05485562]
[1733256981945,2.22,229.63,229.5,2.22]
[1733256982243,2.22,229.63,229.57,7.05485562]
[1733256983342,2.22,229.63,229.6,2.1769]
[1733256984644,2.22,229.63,229.56,7.05485562]
[1733256985842,2.22,229.63,229.61,2.1768]
[1733256986546,2.176,229.69,229.63,2.1766]
[1733256986743,9.27485562,229.68,229.6,7.05485562]
[1733256986946,7.05485562,229.66,229.58,7.05485562]
[1733256987343,7.05485562,229.66,229.62,2.1767]
[1733256989241,2.22,229.68,229.54,7.05485562]
[1733256989242,7.05485562,229.64,229.54,7.05485562]
[1733256989446,7.05485562,229.61,229.54,7.05485562]
[1733256989942,7.05485562,229.61,229.58,2.177]
[1733256991546,7.05485562,229.61,229.54,7.05485562]
[1733256991747,7.05485562,229.61,229.57,2.1771]
[1733256992046,7.05485562,229.59,229.57,2.1771]
[1733256992347,2.22,229.58,229.57,2.1771]
[1733256996440,7.05485562,229.61,229.57,2.1771]
[1733256996644,2.22,229.6,229.55,2.1773]
[1733256996839,2.22,229.6,229.54,7.05485562]
[1733256997843,2.22,229.6,229.57,2.1771]
[1733256998041,2.22,229.6,229.54,7.05485562]
[1733256998447,2.22,229.6,229.57,2.1771]
[1733256998748,2.22,229.6,229.54,7.05485562]
[1733256998952,2.22,229.6,229.59,2.177]
[1733257001750,9.27485562,229.6,229.57,2.1771]
[1733257001955,7.05485562,229.58,229.51,7.05485562]
[1733257002248,7.05485562,229.58,229.41,4.3574]
[1733257002447,2.22,229.6,229.47,7.05485562]
[1733257002448,7.05485562,229.54,229.47,7.05485562]
[1733257002655,2.22,229.53,229.49,7.05485562]
[1733257002854,2.22,229.54,229.49,7.05485562]
[1733257003748,2.22,229.54,229.53,2.1776]
[1733257006255,2.22,229.54,229.52,2.1776]
[1733257006646,2.22,229.54,229.53,2.1776]
[1733257007054,2.22,229.54,229.48,7.05485562]
[1733257007251,2.22,229.54,229.52,2.1776]
[1733257007650,2.22,229.54,229.48,7.05485562]
[1733257007853,2.22,229.54,229.52,2.1776]
[1733257008052,2.22,229.54,229.48,7.05485562]
[1733257008257,2.22,229.54,229.49,2.1779]
[1733257008456,2.22,229.54,229.48,7.05485562]
[1733257009156,7.05485562,229.49,229.37,2.6604305]
[1733257009355,7.05485562,229.44,229.38,7.05485562]
[1733257009655,2.22,229.43,229.42,2.1786]
[1733257010755,1.3496,229.48,229.39,7.05485562]
[1733257010951,1.3496,229.48,229.3,4.34786062]
[1733257010952,2.22,229.49,229.46,7.05485562]
[1733257011351,1.57,229.49,229.48,2.178]
[1733257011551,1.3496,229.61,229.38,5.22008184]
[1733257011753,7.05485562,229.56,229.5,7.05485562]
[1733257012057,2.5996,229.6,229.52,7.05485562]
[1733257012256,2.22,229.59,229.54,7.05485562]
[1733257012460,9.27485562,229.6,229.57,0.65]
[1733257012653,7.05485562,229.58,229.57,0.65]
[1733257012849,9.27485562,229.58,229.57,0.65]
[1733257014156,2.22,229.58,229.57,0.65]
[1733257014357,9.27485562,229.58,229.57,0.65]
[1733257016361,9.27485562,229.58,229.55,2.1774]
[1733257016757,9.27485562,229.58,229.56,2.1772]
[1733257017460,2.22,229.58,229.57,2.1772]
[1733257017661,2.22,229.58,229.49,7.05485562]
[1733257017863,7.05485562,229.57,229.51,7.05485562]
[1733257018059,7.05485562,229.57,229.56,2.1773]
[1733257018964,7.05485562,229.57,229.45,7.05485562]
[1733257019164,2.22,229.58,229.45,7.05485562]
[1733257019165,7.05485562,229.53,229.45,7.05485562]
[1733257019364,2.22,229.52,229.45,7.05485562]
[1733257019563,2.22,229.52,229.47,7.05485562]
[1733257020469,2.22,229.52,229.45,7.05485562]
[1733257020668,7.05485562,229.51,229.43,7.05485562]
[1733257020963,7.05485562,229.47,229.38,2.6081]
[1733257021163,7.05485562,229.47,229.34,1.2563]
[1733257021164,2.22,229.46,229.34,1.2563]
[1733257021368,2.22,229.46,229.44,2.1783]
[1733257021571,2.22,229.46,229.34,1.2563]
[1733257021871,7.05485562,229.43,229.4,2.1787]
[1733257022469,7.05485562,229.41,229.34,7.05485562]
[1733257022671,2.22,229.4,229.34,7.05485562]
[1733257023166,2.22,229.4,229.27,3.4869]
[1733257023167,2.22,229.4,229.28,2.12879975]
[1733257023367,2.22,229.4,229.37,2.1791]
[1733257023562,2.22,229.4,229.3,11.04379385]
[1733257023763,2.22,229.4,229.39,2.1789]
[1733257024359,2.22,229.4,229.28,2.12877825]
[1733257024561,2.22,229.4,229.36,2.1791]
[1733257024763,2.22,229.4,229.29,11.04379385]
[1733257025766,2.22,229.4,229.34,2.1793]
[1733257025963,2.1789,229.39,229.29,11.04379385]
[1733257026170,13.26379385,229.4,229.27,1.2669]
[1733257026570,2.179,229.38,229.3,2.1797]
[1733257026765,2.179,229.38,229.27,1.2669]
[1733257026969,13.26379385,229.4,229.27,1.2669]
[1733257027871,2.22,229.39,229.29,11.04379385]
[1733257028272,2.5464,229.41,229.32,11.04379385]
[1733257028473,2.22,229.4,229.32,11.04379385]
[1733257029473,1.2786,229.41,229.32,11.04379385]
[1733257029676,2.22,229.4,229.32,11.04379385]
[1733257030078,2.22,229.4,229.39,2.1789]
[1733257030276,2.22,229.42,229.35,11.04379385]
[1733257030473,2.22,229.42,229.41,2.1787]
[1733257030673,2.22,229.46,229.38,11.04379385]
[1733257030977,2.22,229.46,229.43,0.65]
[1733257031380,2.22,229.46,229.44,2.1784]
[1733257031781,2.6328,229.52,229.43,0.65]
[1733257031978,2.22,229.51,229.43,0.65]
[1733257032280,2.22,229.51,229.47,2.1781]
[1733257032479,2.22,229.51,229.43,0.65]
[1733257033178,40.8,229.54,229.44,11.04379385]
[1733257033378,13.22099385,229.58,229.44,11.04379385]
[1733257033379,2.22,229.53,229.44,11.04379385]
[1733257033680,2.22,229.53,229.51,2.1777]
[1733257034182,2.22,229.53,229.44,11.04379385]
[1733257034787,2.22,229.53,229.52,2.1776]
[1733257036282,2.22,229.53,229.41,11.04379385]
[1733257036579,2.1777,229.52,229.41,11.04379385]
[1733257036877,2.22,229.53,229.47,2.1781]
[1733257037085,4.3976,229.53,229.47,2.1781]
[1733257037275,2.22,229.53,229.46,2.1782]
[1733257037482,2.22,229.53,229.41,11.04379385]
[1733257037887,2.22,229.53,229.47,2.1781]
[1733257038381,4.3976,229.53,229.47,2.1781]
[1733257039184,4.3976,229.53,229.48,2.178]
[1733257039683,2.22,229.53,229.44,11.04379385]
[1733257040088,11.04379385,229.58,229.44,11.04379385]
[1733257040089,2.22,229.52,229.44,11.04379385]
[1733257041185,2.22,229.52,229.5,2.1777]
[1733257041481,2.22,229.52,229.43,11.04379385]
[1733257041689,2.22,229.52,229.4,11.04379385]
[1733257041889,2.22,229.52,229.49,2.1779]
[1733257043180,4.3977,229.52,229.46,2.1782]
[1733257043385,4.3977,229.52,229.4,11.04379385]
[1733257044288,4.3977,229.52,229.47,2.1781]
[1733257044587,2.22,229.52,229.47,2.1781]
[1733257045387,4.3977,229.52,229.47,2.1781]
[1733257046189,2.5574,229.51,229.4,11.04379385]
[1733257046792,2.1779,229.49,229.45,2.1783]
[1733257047292,2.1779,229.5,229.45,2.1783]
[1733257047894,2.5574,229.51,229.45,2.1783]
[1733257048087,2.1779,229.49,229.45,2.1783]
[1733257048288,2.5574,229.51,229.46,2.1782]
[1733257048493,2.1779,229.5,229.37,14.86119385]
[1733257048688,2.5574,229.51,229.37,14.86119385]
[1733257048890,2.5574,229.51,229.44,2.1783]
[1733257049085,2.5574,229.51,229.37,14.86119385]
[1733257049086,2.1782,229.46,229.34,11.04379385]
[1733257049289,2.22,229.45,229.34,11.04379385]
[1733257050989,2.22,229.45,229.41,2.1787]
[1733257051592,2.22,229.45,229.34,11.04379385]
[1733257051792,2.1785,229.44,229.34,11.04379385]
[1733257051993,2.22,229.45,229.34,11.04379385]
[1733257052397,4.3983,229.45,229.34,11.04379385]
[1733257052788,4.3983,229.45,229.37,2.179]
[1733257053094,2.1785,229.44,229.34,11.04379385]
[1733257053396,2.22,229.45,229.38,2.1789]
[1733257053591,2.22,229.45,229.31,11.04379385]
[1733257053787,2.1787,229.41,229.31,11.04379385]
[1733257053989,2.22,229.4,229.36,2.1791]
[1733257054195,2.22,229.4,229.31,11.04379385]
[1733257054502,2.22,229.4,229.34,2.1793]
[1733257054798,4.3988,229.4,229.3,1.3668]
[1733257055397,4.3988,229.4,229.29,2.6084]
[1733257055598,4.3988,229.4,229.32,2.1795]
[1733257055801,4.3988,229.4,229.29,2.6084]
[1733257056293,4.3988,229.4,229.35,2.1792]
[1733257056495,2.179,229.38,229.28,11.04379385]
[1733257057091,13.26379385,229.4,229.25,11.04379385]
[1733257057898,2.1791,229.37,229.25,11.04379385]
[1733257059195,2.1791,229.37,229.32,2.1795]
[1733257060199,2.1792,229.36,229.3,2.1797]
[1733257060499,2.22,229.35,229.3,2.1797]
[1733257060700,2.22,229.35,229.25,11.04379385]
[1733257060899,2.22,229.35,229.31,2.1796]
[1733257061602,2.22,229.35,229.32,2.1795]
[1733257063796,2.22,229.35,229.34,2.1794]
[1733257064106,2.7455,229.42,229.28,11.04379385]
[1733257064303,2.22,229.41,229.28,11.04379385]
[1733257064503,2.22,229.4,229.28,11.04379385]
[1733257064905,2.22,229.4,229.38,2.1789]
[1733257065309,1.3446,229.45,229.34,11.04379385]
[1733257065507,1.3446,229.45,229.41,2.1786]
[1733257065807,2.22,229.44,229.34,11.04379385]
[1733257066208,2.22,229.44,229.42,2.1785]
[1733257066908,2.22,229.44,229.34,11.04379385]
[1733257067107,2.22,229.44,229.43,2.1785]
[1733257068006,40.82,229.49,229.37,11.04379385]
[1733257068201,2.22,229.48,229.37,11.04379385]
[1733257069213,2.22,229.48,229.47,2.1781]
[1733257069415,1.3423,229.52,229.43,11.04379385]
[1733257069710,2.22,229.48,229.47,2.1781]
[1733257070319,2.22,229.48,229.43,11.04379385]
[1733257070320,1.3423,229.52,229.48,2.1779]
[1733257070518,2.22,229.51,229.48,2.1779]
[1733257071516,11.04379385,229.58,229.43,11.04379385]
[1733257071817,2.22,229.57,229.43,11.04379385]
[1733257072922,2.1773,229.56,229.51,2.1777]
[1733257073222,2.1773,229.56,229.43,11.04379385]
[1733257074319,2.22,229.55,229.51,2.1777]
[1733257074720,2.22,229.55,229.43,11.04379385]
[1733257075317,2.1773,229.56,229.46,2.1782]
[1733257075522,2.22,229.55,229.43,11.04379385]
[1733257076324,2.22,229.54,229.46,11.04379385]
[1733257076526,2.22,229.54,229.53,2.1776]
[1733257076822,2.22,229.54,229.46,11.04379385]
[1733257077027,2.22,229.54,229.43,11.04379385]
[1733257078126,2.22,229.54,229.46,2.1782]
[1733257078724,2.22,229.54,229.47,2.1781]
[1733257078930,2.22,229.54,229.43,11.04379385]
[1733257079129,2.22,229.54,229.46,11.04379385]
[1733257079327,2.22,229.54,229.51,2.1777]
[1733257079726,2.22,229.54,229.46,11.04379385]
[1733257080331,2.22,229.54,229.53,2.1776]
[1733257080532,2.22,229.54,229.46,11.04379385]
[1733257080940,2.22,229.54,229.5,2.1778]
[1733257081342,2.22,229.54,229.43,11.04379385]
[1733257081538,2.1776,229.53,229.47,2.178]
[1733257082042,2.1776,229.53,229.46,2.1782]
[1733257082240,2.1776,229.53,229.43,11.04379385]
[1733257082639,2.1776,229.53,229.48,2.178]
[1733257083143,13.26379385,229.54,229.48,2.178]
[1733257083340,2.1776,229.53,229.48,2.178]
[1733257083539,13.26379385,229.54,229.42,3.8279]
[1733257083937,13.26379385,229.54,229.45,2.1782]
[1733257084135,13.26379385,229.54,229.42,2.5683]
[1733257084339,13.26379385,229.54,229.4,11.04379385]
[1733257084545,2.1779,229.5,229.37,11.04379385]
[1733257084844,2.22,229.49,229.37,11.04379385]
[1733257085041,2.22,229.49,229.45,2.1782]
[1733257088137,2.22,229.49,229.37,11.04379385]
[1733257089339,2.22,229.49,229.45,2.1782]
[1733257089647,2.22,229.49,229.37,11.04379385]
[1733257089946,1.3592,229.56,229.4,11.04379385]
[1733257089947,2.22,229.48,229.4,11.04379385]
[1733257090747,2.22,229.48,229.47,2.1781]
[1733257090949,2.22,229.48,229.4,11.04379385]
[1733257091245,2.22,229.48,229.37,11.04379385]
[1733257091441,2.22,229.48,229.44,2.1784]
[1733257091647,7.06477555,229.46,229.44,2.1784]
[1733257093345,7.06477555,229.46,229.39,7.06477555]
[1733257093346,9.28477555,229.48,229.39,7.06477555]
[1733257094951,9.28477555,229.48,229.44,2.1783]
[1733257097553,9.28477555,229.48,229.39,7.06477555]
[1733257097554,9.24307555,229.46,229.41,2.1787]
[1733257097743,7.06477555,229.44,229.35,2.7044]
[1733257097947,2.22,229.43,229.35,1.3369]
[1733257098147,7.06477555,229.42,229.35,8.40167555]
[1733257098353,7.06477555,229.42,229.38,2.1789]
[1733257098654,7.06477555,229.4,229.29,2.7558]
[1733257098843,9.24387555,229.38,229.33,2.1794]
[1733257099154,2.22,229.37,229.33,2.1794]
[1733257099349,2.22,229.37,229.31,7.06477555]
[1733257099748,2.22,229.37,229.33,7.06477555]
[1733257099947,2.7015,229.42,229.35,7.06477555]
[1733257100150,2.22,229.41,229.35,7.06477555]
[1733257100453,2.22,229.41,229.38,2.829]
[1733257102650,2.22,229.41,229.39,2.1789]
[1733257105357,2.22,229.41,229.39,2.1787]
[1733257105753,11.04242413,229.46,229.32,11.04242413]
[1733257105958,2.7285,229.54,229.35,11.04242413]
[1733257105959,2.22,229.45,229.35,11.04242413]
[1733257106158,2.22,229.45,229.42,0.65]
[1733257107258,2.22,229.46,229.42,0.65]
[1733257107560,2.22,229.46,229.43,2.1783]
[1733257107756,2.22,229.46,229.42,0.65]
[1733257107949,2.22,229.49,229.45,2.1781]
[1733257110660,4.3978,229.49,229.45,2.1781]
[1733257111760,4.3978,229.49,229.38,11.04242413]
[1733257112062,4.3978,229.49,229.35,11.04242413]
[1733257112659,4.3978,229.49,229.44,2.1783]
[1733257113864,2.22,229.49,229.44,2.1783]
[1733257114068,2.178,229.48,229.44,2.1783]
[1733257114462,2.22,229.49,229.35,11.04242413]
[1733257114658,2.1781,229.47,229.35,11.04242413]
[1733257115362,2.1781,229.47,229.42,2.1784]
[1733257115563,2.1781,229.47,229.35,11.04242413]
[1733257116368,2.1779,229.48,229.35,11.04242413]
[1733257117171,2.1781,229.47,229.35,11.04242413]
[1733257118170,2.1781,229.47,229.42,2.1784]
[1733257118368,2.1781,229.47,229.35,11.04242413]
[1733257119163,2.1781,229.47,229.38,2.1788]
[1733257119472,11.04242413,229.45,229.28,3.5481]
[1733257119669,11.04242413,229.42,229.29,12.42942413]
[1733257119870,4.3987,229.41,229.32,2.1794]
[1733257120069,4.3987,229.41,229.29,12.42942413]
[1733257120470,2.22,229.41,229.36,2.179]
[1733257121570,4.3987,229.41,229.36,2.179]
[1733257123274,2.22,229.41,229.29,12.42942413]
[1733257123872,11.04242413,229.39,229.26,12.40692413]
[1733257124069,11.04242413,229.39,229.27,1.33234041]
[1733257124271,11.04242413,229.39,229.26,12.40692413]
[1733257124472,11.04242413,229.39,229.27,1.33240012]
[1733257124672,2.1791,229.37,229.33,2.1794]
[1733257124867,2.22,229.36,229.33,2.1794]
[1733257125672,9.29100177,229.36,229.33,2.1794]
[1733257125975,9.29100177,229.36,229.29,7.07100177]
[1733257126176,9.29100177,229.36,229.26,1.3645]
[1733257126177,9.29100177,229.36,229.28,7.07100177]
[1733257126677,11.47020177,229.36,229.31,2.1796]
[1733257127780,2.1793,229.35,229.31,2.1796]
[1733257128283,9.29100177,229.36,229.22,2.7157]
[1733257128284,9.25040177,229.34,229.3,2.1797]
[1733257128982,2.22,229.36,229.28,2.1799]
[1733257128983,7.07100177,229.32,229.28,2.1799]
[1733257129182,2.22,229.31,229.25,7.07100177]
[1733257129773,7.07100177,229.3,229.15,1.47585576]
[1733257130074,7.07100177,229.3,229.23,7.07100177]
[1733257130475,2.22,229.31,229.25,7.07100177]
[1733257130679,2.22,229.31,229.15,3.8559]
[1733257130680,2.22,229.31,229.3,2.1797]
[1733257130880,7.07100177,229.34,229.27,7.07100177]
[1733257131076,2.22,229.33,229.27,7.07100177]
[1733257131679,2.22,229.33,229.3,2.1797]
[1733257131876,7.07100177,229.32,229.19,1.33461329]
[1733257132076,7.07100177,229.32,229.24,7.07100177]
[1733257132280,7.07100177,229.32,229.15,3.8559]
[1733257132281,7.07100177,229.3,229.15,3.8559]
[1733257132486,7.07100177,229.3,229.22,7.07100177]
[1733257133483,7.07100177,229.28,229.22,7.07100177]
[1733257133680,2.22,229.27,229.23,2.1804]
[1733257133883,2.22,229.27,229.2,7.07100177]
[1733257133884,7.07100177,229.26,229.2,7.07100177]
[1733257134085,7.07100177,229.26,229.18,7.07100177]
[1733257134588,7.07100177,229.26,229.21,2.1805]
[1733257134983,7.07100177,229.26,229.18,7.07100177]
[1733257135482,2.22,229.25,229.18,7.07100177]
[1733257136786,2.22,229.25,229.2,7.07100177]
[1733257137086,2.22,229.25,229.22,2.1805]
[1733257138881,2.22,229.25,229.15,2.5618]
[1733257139083,2.22,229.25,229.2,7.07100177]
[1733257140789,2.22,229.25,229.21,2.1806]
[1733257140990,2.22,229.25,229.2,7.07100177]
[1733257141487,2.22,229.25,229.23,2.1804]
[1733257141885,2.22,229.25,229.15,1.2634]
[1733257142091,2.22,229.25,229.21,2.1806]
[1733257142388,2.22,229.24,229.18,7.07100177]
[1733257142589,2.22,229.24,229.19,2.1807]
[1733257142789,2.22,229.24,229.15,1.2634]
[1733257142986,2.22,229.24,229.19,7.07100177]
[1733257143190,2.22,229.24,229.21,2.1803]
[1733257143386,1.334,229.34,229.23,7.07100177]
[1733257143585,7.07100177,229.32,229.25,7.72100177]
[1733257143988,2.22,229.31,229.27,7.07100177]
[1733257144189,2.22,229.31,229.29,7.07100177]
[1733257144388,1.2524,229.35,229.29,7.07100177]
[1733257144588,1.2524,229.35,229.25,0.65]
[1733257144589,2.22,229.34,229.25,0.65]
[1733257144893,2.22,229.35,229.33,7.07100177]
[1733257145089,2.22,229.36,229.35,2.1791]
[1733257145793,7.07100177,229.4,229.34,2.1791]
[1733257145991,2.22,229.36,229.31,7.07100177]
[1733257146192,2.22,229.36,229.25,0.65]
[1733257146193,7.07100177,229.34,229.25,0.65]
[1733257146396,2.22,229.33,229.31,7.07100177]
[1733257146689,2.22,229.36,229.31,7.07100177]
[1733257146889,2.22,229.36,229.25,0.65]
[1733257146890,2.22,229.38,229.34,7.07100177]
[1733257147192,2.22,229.38,229.35,2.179]
[1733257147693,2.1785,229.41,229.35,2.179]
[1733257147889,2.22,229.4,229.35,2.179]
[1733257148098,11.46960177,229.4,229.35,2.179]
[1733257148487,11.46960177,229.4,229.34,2.1791]
[1733257148488,9.29100177,229.4,229.34,2.1791]
[1733257148689,9.29100177,229.4,229.32,7.07100177]
[1733257148892,9.29100177,229.4,229.35,2.179]
[1733257149698,2.22,229.39,229.35,2.179]
[1733257150099,2.22,229.39,229.36,2.179]
[1733257150598,2.22,229.39,229.34,7.07100177]
[1733257150801,2.22,229.41,229.36,7.07100177]
[1733257150998,2.22,229.41,229.4,0.65]
[1733257151503,2.22,229.44,229.4,0.65]
[1733257151801,2.22,229.44,229.42,2.1783]
[1733257152097,2.1779,229.47,229.4,7.72100177]
[1733257152098,2.22,229.47,229.4,7.72100177]